[Event "Early-Titled-Tuesday-Blitz-August-29-2023"]
[Site "Chess.com"]
[Date "2023.08.29"]
[Round "2"]
[White "Arek_pacitan"]
[Black "joppie2"]
[Result "1/2-1/2"]
[WhiteElo "2623"]
[BlackElo "2937"]
[TimeControl "180+1"]
[EndTime "8:17:52 PDT"]
[Termination "Game drawn by repetition"]

1. d4 {[%clk 0:03:00.9]} 1... g6 {[%clk 0:03:00.9]} 2. c4 {[%clk 0:02:58.6]}
2... Bg7 {[%clk 0:03:00.6]} 3. Nc3 {[%clk 0:02:58.8]} 3... d6 {[%clk 0:03:01.2]}
4. e4 {[%clk 0:02:59.1]} 4... Nf6 {[%clk 0:03:01.9]} 5. h3 {[%clk 0:02:58.8]}
5... e5 {[%clk 0:03:01.1]} 6. Nge2 {[%clk 0:02:57.4]} 6... exd4 {[%clk 0:02:57]}
7. Nxd4 {[%clk 0:02:58.3]} 7... O-O {[%clk 0:02:57.8]} 8. Be3 {[%clk 0:02:53.3]}
8... c6 {[%clk 0:02:56.4]} 9. Be2 {[%clk 0:02:50.9]} 9... Re8 {[%clk 0:02:56.2]}
10. Bf3 {[%clk 0:02:41.7]} 10... Nbd7 {[%clk 0:02:54.8]} 11. O-O {[%clk
0:02:40.7]} 11... Nc5 {[%clk 0:02:55.6]} 12. Qc2 {[%clk 0:02:39.8]} 12... Qe7
{[%clk 0:02:55.9]} 13. Rfe1 {[%clk 0:02:37.2]} 13... a5 {[%clk 0:02:56.5]} 14.
Rad1 {[%clk 0:02:30.1]} 14... h6 {[%clk 0:02:54.5]} 15. Bf4 {[%clk 0:02:27.6]}
15... Nfd7 {[%clk 0:02:52.9]} 16. b3 {[%clk 0:02:18.5]} 16... Ne5 {[%clk
0:02:48]} 17. Be2 {[%clk 0:02:18.4]} 17... Qf6 {[%clk 0:02:45.4]} 18. Bg3 {[%clk
0:02:15.6]} 18... g5 {[%clk 0:02:39.5]} 19. Nf5 {[%clk 0:01:59.7]} 19... Bxf5
{[%clk 0:02:39.4]} 20. exf5 {[%clk 0:02:00.6]} 20... Rad8 {[%clk 0:02:37.5]} 21.
Bh5 {[%clk 0:01:57.9]} 21... Nxc4 {[%clk 0:02:13.5]} 22. Rxe8+ {[%clk
0:01:45.4]} 22... Rxe8 {[%clk 0:02:14.4]} 23. bxc4 {[%clk 0:01:45]} 23... Qxc3
{[%clk 0:02:14.4]} 24. Qxc3 {[%clk 0:01:45.6]} 24... Bxc3 {[%clk 0:02:15]} 25.
Bxd6 {[%clk 0:01:44.5]} 25... Ne4 {[%clk 0:02:10.6]} 26. Ba3 {[%clk 0:01:36.6]}
26... Nf6 {[%clk 0:02:02.1]} 27. Bf3 {[%clk 0:01:36.2]} 27... Kg7 {[%clk
0:01:54.6]} 28. Kf1 {[%clk 0:01:33.6]} 28... Re5 {[%clk 0:01:47.1]} 29. g4
{[%clk 0:01:32]} 29... Re8 {[%clk 0:01:40.6]} 30. Rb1 {[%clk 0:01:32]} 30... Ne4
{[%clk 0:01:29.6]} 31. Rxb7 {[%clk 0:01:14.9]} 31... Nd2+ {[%clk 0:01:26.8]} 32.
Kg2 {[%clk 0:01:15.2]} 32... Nxc4 {[%clk 0:01:20.6]} 33. Bc5 {[%clk 0:01:13.6]}
33... Ne5 {[%clk 0:01:18.4]} 34. Rb3 {[%clk 0:01:07.9]} 34... Nxf3 {[%clk
0:01:16.1]} 35. Rxc3 {[%clk 0:01:02.1]} 35... Nh4+ {[%clk 0:01:16]} 36. Kf1
{[%clk 0:01:01.3]} 36... Re4 {[%clk 0:01:15.9]} 37. Bd6 {[%clk 0:00:49.4]} 37...
h5 {[%clk 0:01:12]} 38. f3 {[%clk 0:00:41.3]} 38... Ra4 {[%clk 0:01:11.6]} 39.
a3 {[%clk 0:00:39.6]} 39... f6 {[%clk 0:01:08.5]} 40. Kf2 {[%clk 0:00:39]} 40...
hxg4 {[%clk 0:01:06.9]} 41. fxg4 {[%clk 0:00:38.2]} 41... Rd4 {[%clk 0:01:07.1]}
42. Rxc6 {[%clk 0:00:34.7]} 42... Kf7 {[%clk 0:01:04.7]} 43. Rc7+ {[%clk
0:00:34.4]} 43... Ke8 {[%clk 0:01:05]} 44. Be7 {[%clk 0:00:33.9]} 44... Rd2+
{[%clk 0:00:57]} 45. Kf1 {[%clk 0:00:28.5]} 45... Nf3 {[%clk 0:00:53.9]} 46.
Bxf6 {[%clk 0:00:28.2]} 46... Nh2+ {[%clk 0:00:50.4]} 47. Ke1 {[%clk 0:00:27.9]}
47... Nf3+ {[%clk 0:00:51.3]} 48. Kf1 {[%clk 0:00:28.4]} 48... Nh2+ {[%clk
0:00:41.3]} 49. Kg1 {[%clk 0:00:28.2]} 49... Nf3+ {[%clk 0:00:42.2]} 50. Kf1
{[%clk 0:00:28.8]} 1/2-1/2

[Event "Early-Titled-Tuesday-Blitz-August-29-2023"]
[Site "Chess.com"]
[Date "2023.08.29"]
[Round "2"]
[White "Bilan_Danila"]
[Black "InitiatingASC"]
[Result "1-0"]
[WhiteElo "2524"]
[BlackElo "2343"]
[TimeControl "180+1"]
[EndTime "8:17:53 PDT"]
[Termination "Bilan_Danila won by resignation"]

1. d4 {[%clk 0:03:00.9]} 1... d5 {[%clk 0:02:50.2]} 2. Nf3 {[%clk 0:03:00.6]}
2... c5 {[%clk 0:02:48.7]} 3. c4 {[%clk 0:02:58.1]} 3... cxd4 {[%clk 0:02:47.9]}
4. cxd5 {[%clk 0:02:58.5]} 4... Qxd5 {[%clk 0:02:46.8]} 5. Nc3 {[%clk
0:02:58.2]} 5... Qd8 {[%clk 0:02:43]} 6. Qxd4 {[%clk 0:02:56.5]} 6... Nc6 {[%clk
0:02:41.2]} 7. Qxd8+ {[%clk 0:02:51.8]} 7... Nxd8 {[%clk 0:02:40.8]} 8. e4
{[%clk 0:02:45.8]} 8... Bd7 {[%clk 0:02:32.5]} 9. Ne5 {[%clk 0:02:31.4]} 9...
Nf6 {[%clk 0:02:24.4]} 10. Nxd7 {[%clk 0:02:29.7]} 10... Nxd7 {[%clk 0:02:24.6]}
11. Be3 {[%clk 0:02:20.7]} 11... e6 {[%clk 0:02:21.8]} 12. O-O-O {[%clk
0:01:57.7]} 12... a6 {[%clk 0:02:03.7]} 13. f4 {[%clk 0:01:26]} 13... Rc8 {[%clk
0:01:56.9]} 14. Kb1 {[%clk 0:01:23.1]} 14... Bc5 {[%clk 0:01:56.8]} 15. Bc1
{[%clk 0:01:16.7]} 15... Nb6 {[%clk 0:01:40.8]} 16. e5 {[%clk 0:01:10.9]} 16...
Nc6 {[%clk 0:01:16]} 17. g3 {[%clk 0:01:02.4]} 17... O-O {[%clk 0:01:09.8]} 18.
Ne4 {[%clk 0:00:49.8]} 18... Be7 {[%clk 0:01:05.9]} 19. Be3 {[%clk 0:00:38.1]}
19... Nd5 {[%clk 0:01:00.4]} 20. Bc5 {[%clk 0:00:37.3]} 20... Rfd8 {[%clk
0:00:53.4]} 21. Bxe7 {[%clk 0:00:35.2]} 21... Ncxe7 {[%clk 0:00:53]} 22. Nd6
{[%clk 0:00:33.6]} 22... Rc7 {[%clk 0:00:48.5]} 23. Bd3 {[%clk 0:00:24.8]} 23...
Nc8 {[%clk 0:00:44.8]} 24. Nxc8 {[%clk 0:00:16.1]} 24... Rdxc8 {[%clk
0:00:44.8]} 25. Rc1 {[%clk 0:00:17]} 25... Rxc1+ {[%clk 0:00:43.2]} 26. Rxc1
{[%clk 0:00:17.9]} 26... Rxc1+ {[%clk 0:00:42.9]} 27. Kxc1 {[%clk 0:00:18.8]}
27... Kf8 {[%clk 0:00:43.1]} 28. Kd2 {[%clk 0:00:18.5]} 28... Ke7 {[%clk
0:00:39.9]} 29. h4 {[%clk 0:00:17.9]} 29... g6 {[%clk 0:00:39.6]} 30. Be4 {[%clk
0:00:18.3]} 30... Kd7 {[%clk 0:00:29.1]} 31. Bxd5 {[%clk 0:00:18.2]} 31... exd5
{[%clk 0:00:29.6]} 32. Kd3 {[%clk 0:00:19.1]} 32... h5 {[%clk 0:00:19.4]} 33.
Kd4 {[%clk 0:00:16.4]} 33... Kc6 {[%clk 0:00:08.6]} 34. a3 {[%clk 0:00:16.3]}
34... b6 {[%clk 0:00:05.7]} 35. b3 {[%clk 0:00:16.5]} 1-0

[Event "Early-Titled-Tuesday-Blitz-August-29-2023"]
[Site "Chess.com"]
[Date "2023.08.29"]
[Round "2"]
[White "superfast64"]
[Black "maurovargas01"]
[Result "1-0"]
[WhiteElo "2428"]
[BlackElo "1910"]
[TimeControl "180+1"]
[EndTime "8:17:54 PDT"]
[Termination "superfast64 won on time"]

1. d4 {[%clk 0:02:56.1]} 1... d5 {[%clk 0:02:43.3]} 2. Bg5 {[%clk 0:02:56.3]}
2... h5 {[%clk 0:02:41.2]} 3. Nf3 {[%clk 0:02:50.8]} 3... Bg4 {[%clk 0:02:40]}
4. Nbd2 {[%clk 0:02:44]} 4... Qd7 {[%clk 0:02:31.8]} 5. h3 {[%clk 0:02:31.7]}
5... Bf5 {[%clk 0:02:21.9]} 6. e3 {[%clk 0:02:26.8]} 6... f6 {[%clk 0:02:19]} 7.
Bf4 {[%clk 0:02:26.8]} 7... g5 {[%clk 0:02:17.8]} 8. Bg3 {[%clk 0:02:26.5]} 8...
Nh6 {[%clk 0:02:16.5]} 9. c4 {[%clk 0:02:11.8]} 9... e6 {[%clk 0:02:05.5]} 10.
Qb3 {[%clk 0:02:08.8]} 10... c6 {[%clk 0:01:58.9]} 11. Be2 {[%clk 0:01:59.6]}
11... Bg6 {[%clk 0:01:54.1]} 12. a3 {[%clk 0:01:48.9]} 12... Bg7 {[%clk
0:01:53.2]} 13. Rc1 {[%clk 0:01:46.8]} 13... O-O {[%clk 0:01:52.5]} 14. Nb1
{[%clk 0:01:40.1]} 14... Nf5 {[%clk 0:01:51.2]} 15. Bh2 {[%clk 0:01:39.1]} 15...
Na6 {[%clk 0:01:32.1]} 16. cxd5 {[%clk 0:01:31.9]} 16... exd5 {[%clk 0:01:27.9]}
17. Bxa6 {[%clk 0:01:27.4]} 17... bxa6 {[%clk 0:01:25.5]} 18. Nc3 {[%clk
0:01:22.7]} 18... Rfe8 {[%clk 0:01:21]} 19. Na4 {[%clk 0:01:16]} 19... g4 {[%clk
0:01:11.9]} 20. Nc5 {[%clk 0:01:14.1]} 20... Qc8 {[%clk 0:00:57.4]} 21. hxg4
{[%clk 0:01:06]} 21... hxg4 {[%clk 0:00:55.6]} 22. Nd2 {[%clk 0:00:56.5]} 22...
Nxd4 {[%clk 0:00:55]} 23. Qd1 {[%clk 0:00:56]} 23... Rb8 {[%clk 0:00:19.8]} 24.
b4 {[%clk 0:00:48.1]} 24... a5 {[%clk 0:00:18.2]} 25. Bxb8 {[%clk 0:00:46.5]}
25... Qxb8 {[%clk 0:00:16.4]} 26. O-O {[%clk 0:00:45.5]} 26... Nf3+ {[%clk
0:00:07.9]} 27. gxf3 {[%clk 0:00:41.3]} 27... gxf3 {[%clk 0:00:08]} 28. Qxf3
{[%clk 0:00:40]} 28... axb4 {[%clk 0:00:07.7]} 29. axb4 {[%clk 0:00:40]} 29...
Qxb4 {[%clk 0:00:07.6]} 30. Qg3 {[%clk 0:00:19]} 30... Kf7 {[%clk 0:00:04.5]}
31. Nf3 {[%clk 0:00:19.5]} 31... Re4 {[%clk 0:00:01.6]} 32. Nxe4 {[%clk
0:00:17.8]} 32... Bxe4 {[%clk 0:00:02]} 33. Kg2 {[%clk 0:00:18.4]} 1-0

[Event "Early-Titled-Tuesday-Blitz-August-29-2023"]
[Site "Chess.com"]
[Date "2023.08.29"]
[Round "2"]
[White "Genghis_K"]
[Black "OlaaLa"]
[Result "1-0"]
[WhiteElo "2891"]
[BlackElo "2432"]
[TimeControl "180+1"]
[EndTime "8:17:55 PDT"]
[Termination "Genghis_K won by resignation"]

1. e4 {[%clk 0:02:59.4]} 1... c6 {[%clk 0:02:58.3]} 2. d4 {[%clk 0:02:59.4]}
2... d5 {[%clk 0:02:57.5]} 3. e5 {[%clk 0:03:00.1]} 3... Bf5 {[%clk 0:02:56.8]}
4. h4 {[%clk 0:03:00.7]} 4... h5 {[%clk 0:02:54.2]} 5. Bg5 {[%clk 0:03:01.3]}
5... Qb6 {[%clk 0:02:48.6]} 6. Bd3 {[%clk 0:03:01.9]} 6... Bxd3 {[%clk
0:02:42.3]} 7. Qxd3 {[%clk 0:03:01.8]} 7... Qxb2 {[%clk 0:02:41.2]} 8. Nf3
{[%clk 0:02:50]} 8... Na6 {[%clk 0:02:10.9]} 9. e6 {[%clk 0:02:44.5]} 9... f5
{[%clk 0:01:27.5]} 10. O-O {[%clk 0:02:37.9]} 10... O-O-O {[%clk 0:01:21.9]} 11.
c3 {[%clk 0:02:22]} 11... Nc7 {[%clk 0:01:15.5]} 12. Nbd2 {[%clk 0:02:19.8]}
12... Qb5 {[%clk 0:01:07.8]} 13. Qxf5 {[%clk 0:02:19.4]} 13... Nh6 {[%clk
0:01:01]} 14. Qg6 {[%clk 0:02:09.2]} 14... Qa5 {[%clk 0:00:49.8]} 15. Ne5 {[%clk
0:02:02.6]} 15... Qxc3 {[%clk 0:00:48.3]} 16. Ndf3 {[%clk 0:02:02.2]} 16... Rd6
{[%clk 0:00:39.8]} 17. Rfc1 {[%clk 0:01:57.8]} 17... Qa5 {[%clk 0:00:34.9]} 18.
Bxh6 {[%clk 0:01:40.1]} 18... Rxh6 {[%clk 0:00:35]} 19. Qf5 {[%clk 0:01:38.3]}
19... Rf6 {[%clk 0:00:34.4]} 20. Qxh5 {[%clk 0:01:35.7]} 20... Nxe6 {[%clk
0:00:34.6]} 21. Rab1 {[%clk 0:01:22.8]} 21... Qd8 {[%clk 0:00:27.8]} 22. Nd3
{[%clk 0:01:09.8]} 22... Nf4 {[%clk 0:00:26.2]} 23. Qg4+ {[%clk 0:01:07.4]}
23... Ne6 {[%clk 0:00:25.7]} 24. Nfe5 {[%clk 0:01:06.5]} 24... Kc7 {[%clk
0:00:20.1]} 25. Rb3 {[%clk 0:00:55.2]} 25... g6 {[%clk 0:00:20.5]} 26. Ra3
{[%clk 0:00:53.8]} 26... Bh6 {[%clk 0:00:15.1]} 27. Rb1 {[%clk 0:00:48.9]} 27...
a6 {[%clk 0:00:15.6]} 28. Rab3 {[%clk 0:00:46.5]} 28... b5 {[%clk 0:00:15.9]}
29. a4 {[%clk 0:00:44.8]} 29... Bd2 {[%clk 0:00:14.9]} 30. axb5 {[%clk
0:00:44.8]} 30... cxb5 {[%clk 0:00:15.4]} 31. Qd1 {[%clk 0:00:40.6]} 31... Ba5
{[%clk 0:00:15.3]} 32. Ra3 {[%clk 0:00:39.8]} 32... Kb8 {[%clk 0:00:13.5]} 33.
Rba1 {[%clk 0:00:39.6]} 33... Bc7 {[%clk 0:00:10.4]} 34. Rxa6 {[%clk 0:00:39.1]}
34... Rxa6 {[%clk 0:00:10.7]} 35. Rxa6 {[%clk 0:00:39.7]} 35... Nxd4 {[%clk
0:00:10.2]} 36. Ra2 {[%clk 0:00:29.4]} 36... Bxe5 {[%clk 0:00:09.4]} 37. Nxe5
{[%clk 0:00:30.3]} 37... Nf5 {[%clk 0:00:07]} 38. Qa1 {[%clk 0:00:26.7]} 38...
Qb6 {[%clk 0:00:06.1]} 39. Nd7+ {[%clk 0:00:24.8]} 39... Kc7 {[%clk 0:00:06.2]}
40. Nxb6 {[%clk 0:00:25.2]} 1-0

[Event "Early-Titled-Tuesday-Blitz-August-29-2023"]
[Site "Chess.com"]
[Date "2023.08.29"]
[Round "2"]
[White "tptagain"]
[Black "jsdbv18"]
[Result "1-0"]
[WhiteElo "2882"]
[BlackElo "2565"]
[TimeControl "180+1"]
[EndTime "8:17:56 PDT"]
[Termination "tptagain won by resignation"]

1. Nf3 {[%clk 0:03:00.9]} 1... Nf6 {[%clk 0:02:56.1]} 2. b3 {[%clk 0:03:00.2]}
2... d5 {[%clk 0:02:54.4]} 3. Bb2 {[%clk 0:03:00.5]} 3... e6 {[%clk 0:02:55]} 4.
c4 {[%clk 0:02:59.8]} 4... Be7 {[%clk 0:02:54.7]} 5. g3 {[%clk 0:02:59.6]} 5...
O-O {[%clk 0:02:53.8]} 6. Bg2 {[%clk 0:02:59.9]} 6... b6 {[%clk 0:02:48.9]} 7.
cxd5 {[%clk 0:02:59.5]} 7... exd5 {[%clk 0:02:48.5]} 8. O-O {[%clk 0:02:59]}
8... Bb7 {[%clk 0:02:48.2]} 9. e3 {[%clk 0:02:58.9]} 9... Nbd7 {[%clk 0:02:48]}
10. Nc3 {[%clk 0:02:59.1]} 10... Re8 {[%clk 0:02:44.6]} 11. Rc1 {[%clk
0:02:58.4]} 11... a6 {[%clk 0:02:44.1]} 12. Ne2 {[%clk 0:02:55.4]} 12... Bd6
{[%clk 0:02:40.8]} 13. Nf4 {[%clk 0:02:49.2]} 13... Ne5 {[%clk 0:02:26.8]} 14.
Nxe5 {[%clk 0:02:45.1]} 14... Bxe5 {[%clk 0:02:27]} 15. Bxe5 {[%clk 0:02:45.7]}
15... Rxe5 {[%clk 0:02:27.1]} 16. d4 {[%clk 0:02:46.1]} 16... Re7 {[%clk
0:02:24.6]} 17. b4 {[%clk 0:02:43.2]} 17... Qd6 {[%clk 0:02:22.1]} 18. Qb3
{[%clk 0:02:39.5]} 18... a5 {[%clk 0:02:05.5]} 19. b5 {[%clk 0:02:39.4]} 19...
Rae8 {[%clk 0:01:54]} 20. Rc2 {[%clk 0:02:30.7]} 20... h5 {[%clk 0:01:49.7]} 21.
Nd3 {[%clk 0:02:20]} 21... h4 {[%clk 0:01:44.4]} 22. Ne5 {[%clk 0:02:18.1]}
22... hxg3 {[%clk 0:01:33.7]} 23. hxg3 {[%clk 0:02:19]} 23... Nh7 {[%clk
0:01:27.8]} 24. Nc6 {[%clk 0:02:12.8]} 24... Rd7 {[%clk 0:01:23.8]} 25. Qd3
{[%clk 0:01:55.4]} 25... g6 {[%clk 0:01:14.5]} 26. Qe2 {[%clk 0:01:50.8]} 26...
Kg7 {[%clk 0:01:03.9]} 27. Rfc1 {[%clk 0:01:48.8]} 27... f5 {[%clk 0:00:59.4]}
28. Qf3 {[%clk 0:01:38]} 28... Bxc6 {[%clk 0:00:25.4]} 29. Rxc6 {[%clk
0:01:37.3]} 29... Qe7 {[%clk 0:00:23.6]} 30. Qf4 {[%clk 0:01:21.6]} 30... Rc8
{[%clk 0:00:23]} 31. Rxb6 {[%clk 0:00:57.6]} 31... cxb6 {[%clk 0:00:22.8]} 32.
Rxc8 {[%clk 0:00:57.2]} 32... Rd6 {[%clk 0:00:17.5]} 33. Rc6 {[%clk 0:00:48.3]}
33... Rxc6 {[%clk 0:00:08.7]} 34. bxc6 {[%clk 0:00:49.2]} 34... Nf6 {[%clk
0:00:09.1]} 35. c7 {[%clk 0:00:39.3]} 35... Qd7 {[%clk 0:00:07.4]} 36. Qe5
{[%clk 0:00:38.9]} 36... Kf7 {[%clk 0:00:06.7]} 37. a4 {[%clk 0:00:38.1]} 37...
Qc8 {[%clk 0:00:02.1]} 38. Bxd5+ {[%clk 0:00:35.4]} 38... Nxd5 {[%clk 0:00:02]}
39. Qxd5+ {[%clk 0:00:35.9]} 39... Ke7 {[%clk 0:00:02.8]} 40. Qc6 {[%clk
0:00:35.7]} 1-0

[Event "Early-Titled-Tuesday-Blitz-August-29-2023"]
[Site "Chess.com"]
[Date "2023.08.29"]
[Round "2"]
[White "SchmakAttack"]
[Black "Zq1"]
[Result "1-0"]
[WhiteElo "2810"]
[BlackElo "2532"]
[TimeControl "180+1"]
[EndTime "8:17:58 PDT"]
[Termination "SchmakAttack won on time"]

1. d4 {[%clk 0:03:00.2]} 1... d5 {[%clk 0:02:59.4]} 2. Nc3 {[%clk 0:02:56.1]}
2... Nf6 {[%clk 0:02:58.3]} 3. Bf4 {[%clk 0:02:56.2]} 3... a6 {[%clk 0:02:57.4]}
4. e3 {[%clk 0:02:54.9]} 4... e6 {[%clk 0:02:57.7]} 5. Nf3 {[%clk 0:02:45.4]}
5... c5 {[%clk 0:02:57.6]} 6. Ne5 {[%clk 0:02:40.4]} 6... Nc6 {[%clk 0:02:57.3]}
7. Qd2 {[%clk 0:02:33.4]} 7... Be7 {[%clk 0:02:47.7]} 8. Be2 {[%clk 0:02:30.9]}
8... O-O {[%clk 0:02:46.5]} 9. g4 {[%clk 0:02:22.5]} 9... cxd4 {[%clk
0:02:42.4]} 10. exd4 {[%clk 0:02:22.5]} 10... Qb6 {[%clk 0:02:42.5]} 11. O-O-O
{[%clk 0:02:20]} 11... Ne4 {[%clk 0:02:29.4]} 12. Nxe4 {[%clk 0:02:17.9]} 12...
dxe4 {[%clk 0:02:29.6]} 13. g5 {[%clk 0:02:09.2]} 13... Nb4 {[%clk 0:02:23.4]}
14. a3 {[%clk 0:01:58.4]} 14... Nd5 {[%clk 0:02:20.7]} 15. h4 {[%clk 0:01:45.3]}
15... f6 {[%clk 0:01:44.1]} 16. gxf6 {[%clk 0:01:43.9]} 16... Bxf6 {[%clk
0:01:38.3]} 17. c4 {[%clk 0:00:51.1]} 17... Qc7 {[%clk 0:01:17.8]} 18. Bg3
{[%clk 0:00:38.9]} 18... b5 {[%clk 0:01:08.6]} 19. Ng6 {[%clk 0:00:36.7]} 19...
Qc6 {[%clk 0:01:01.7]} 20. Nxf8 {[%clk 0:00:36.7]} 20... Kxf8 {[%clk 0:01:02]}
21. Qc2 {[%clk 0:00:31.1]} 21... bxc4 {[%clk 0:00:58.9]} 22. Qxc4 {[%clk
0:00:31.8]} 22... Qb7 {[%clk 0:00:51.3]} 23. Kb1 {[%clk 0:00:28.3]} 23... Bd7
{[%clk 0:00:51.3]} 24. Rc1 {[%clk 0:00:25.7]} 24... Rc8 {[%clk 0:00:44.4]} 25.
Qxa6 {[%clk 0:00:24.5]} 25... Qxa6 {[%clk 0:00:23]} 26. Bxa6 {[%clk 0:00:25.4]}
26... Ra8 {[%clk 0:00:20]} 27. Bb7 {[%clk 0:00:23.9]} 27... Ra4 {[%clk 0:00:16]}
28. Bxd5 {[%clk 0:00:09.4]} 28... exd5 {[%clk 0:00:15.5]} 29. Rc7 {[%clk
0:00:09.9]} 29... Bf5 {[%clk 0:00:13.6]} 30. Ka2 {[%clk 0:00:09.4]} 30... Rxd4
{[%clk 0:00:10.3]} 31. Rhc1 {[%clk 0:00:08.9]} 31... Rd2 {[%clk 0:00:08.6]} 32.
Rb7 {[%clk 0:00:09.4]} 32... Be6 {[%clk 0:00:04.3]} 33. Rc6 {[%clk 0:00:08.2]}
1-0

[Event "Early-Titled-Tuesday-Blitz-August-29-2023"]
[Site "Chess.com"]
[Date "2023.08.29"]
[Round "2"]
[White "EvgenyBurmakin"]
[Black "ybothg"]
[Result "0-1"]
[WhiteElo "2263"]
[BlackElo "2487"]
[TimeControl "180+1"]
[EndTime "8:17:59 PDT"]
[Termination "ybothg won on time"]

1. e4 {[%clk 0:03:00.9]} 1... c5 {[%clk 0:02:59.8]} 2. Nc3 {[%clk 0:02:59.6]}
2... Nc6 {[%clk 0:02:59.2]} 3. Bb5 {[%clk 0:02:59.4]} 3... Nd4 {[%clk
0:02:59.1]} 4. Bc4 {[%clk 0:02:59.1]} 4... a6 {[%clk 0:02:50.4]} 5. Nf3 {[%clk
0:02:46]} 5... b5 {[%clk 0:02:49.6]} 6. Bd5 {[%clk 0:02:45.3]} 6... Ra7 {[%clk
0:02:50]} 7. Nxd4 {[%clk 0:02:41.8]} 7... cxd4 {[%clk 0:02:50.9]} 8. Ne2 {[%clk
0:02:34.5]} 8... e6 {[%clk 0:02:51.1]} 9. Bb3 {[%clk 0:02:34.5]} 9... Nf6 {[%clk
0:02:37.3]} 10. d3 {[%clk 0:02:34.2]} 10... Bc5 {[%clk 0:02:33.3]} 11. O-O
{[%clk 0:02:30.5]} 11... d5 {[%clk 0:02:33.5]} 12. e5 {[%clk 0:01:59.8]} 12...
Nd7 {[%clk 0:02:29.3]} 13. c3 {[%clk 0:01:43.9]} 13... Qb6 {[%clk 0:02:15.9]}
14. cxd4 {[%clk 0:01:32.2]} 14... Be7 {[%clk 0:02:16]} 15. Be3 {[%clk 0:01:26]}
15... O-O {[%clk 0:02:15.6]} 16. Qd2 {[%clk 0:01:25.5]} 16... a5 {[%clk
0:02:11.8]} 17. a3 {[%clk 0:01:22.3]} 17... Rc7 {[%clk 0:02:10.4]} 18. Rac1
{[%clk 0:01:21.2]} 18... a4 {[%clk 0:01:59.2]} 19. Ba2 {[%clk 0:01:19.5]} 19...
Ba6 {[%clk 0:01:56.3]} 20. Rxc7 {[%clk 0:01:17.9]} 20... Qxc7 {[%clk 0:01:57.2]}
21. Rc1 {[%clk 0:01:17.1]} 21... Qb6 {[%clk 0:01:57.9]} 22. Nf4 {[%clk 0:00:43]}
22... b4 {[%clk 0:01:35.6]} 23. axb4 {[%clk 0:00:42.4]} 23... Bxb4 {[%clk
0:01:35.3]} 24. Qe2 {[%clk 0:00:40.7]} 24... Rc8 {[%clk 0:01:21.2]} 25. Rxc8+
{[%clk 0:00:39.6]} 25... Bxc8 {[%clk 0:01:22.1]} 26. Qc2 {[%clk 0:00:38]} 26...
Qa6 {[%clk 0:01:12.9]} 27. h4 {[%clk 0:00:27]} 27... h6 {[%clk 0:01:09]} 28. h5
{[%clk 0:00:24.7]} 28... Bb7 {[%clk 0:01:05.8]} 29. Qc7 {[%clk 0:00:22.5]} 29...
Bc6 {[%clk 0:01:00.1]} 30. Bb1 {[%clk 0:00:12]} 30... Be7 {[%clk 0:00:47]} 31.
Bc2 {[%clk 0:00:09.9]} 31... Kf8 {[%clk 0:00:39.6]} 32. Bd1 {[%clk 0:00:09.1]}
32... Ke8 {[%clk 0:00:39.4]} 33. Bg4 {[%clk 0:00:07.3]} 33... Bd8 {[%clk
0:00:39]} 34. Qd6 {[%clk 0:00:06.7]} 34... Be7 {[%clk 0:00:39.6]} 35. Qc7 {[%clk
0:00:05.8]} 35... Qb6 {[%clk 0:00:31.5]} 36. Qxb6 {[%clk 0:00:04.2]} 36... Nxb6
{[%clk 0:00:32.4]} 37. Ne2 {[%clk 0:00:03.2]} 37... Bb5 {[%clk 0:00:32]} 38. Nc1
{[%clk 0:00:02.4]} 38... a3 {[%clk 0:00:30.4]} 39. bxa3 {[%clk 0:00:01.7]} 39...
Bxa3 {[%clk 0:00:31.3]} 40. Nb3 {[%clk 0:00:01.7]} 40... Na4 {[%clk 0:00:32.2]}
0-1

[Event "Early-Titled-Tuesday-Blitz-August-29-2023"]
[Site "Chess.com"]
[Date "2023.08.29"]
[Round "2"]
[White "Aygehovit1992"]
[Black "kacprekt"]
[Result "0-1"]
[WhiteElo "2736"]
[BlackElo "2420"]
[TimeControl "180+1"]
[EndTime "8:18:00 PDT"]
[Termination "kacprekt won on time"]

1. e4 {[%clk 0:03:00.9]} 1... e5 {[%clk 0:02:57.1]} 2. Nf3 {[%clk 0:03:00.1]}
2... Nc6 {[%clk 0:02:57.5]} 3. Nc3 {[%clk 0:02:59.5]} 3... Nf6 {[%clk 0:02:56]}
4. d4 {[%clk 0:02:59.4]} 4... exd4 {[%clk 0:02:53.2]} 5. Nxd4 {[%clk 0:03:00.3]}
5... Nxe4 {[%clk 0:02:51.8]} 6. Nxe4 {[%clk 0:02:57.6]} 6... Qe7 {[%clk
0:02:50.8]} 7. Bd3 {[%clk 0:02:55]} 7... Nxd4 {[%clk 0:02:41.6]} 8. O-O {[%clk
0:02:54.9]} 8... Ne6 {[%clk 0:02:38.9]} 9. Re1 {[%clk 0:02:53.7]} 9... h6 {[%clk
0:02:28.8]} 10. Qh5 {[%clk 0:02:49.3]} 10... g6 {[%clk 0:02:22.3]} 11. Qa5
{[%clk 0:01:56.7]} 11... Bg7 {[%clk 0:02:06.2]} 12. Bf4 {[%clk 0:01:55.6]} 12...
O-O {[%clk 0:01:54.7]} 13. Be5 {[%clk 0:01:40.3]} 13... b6 {[%clk 0:01:36.1]}
14. Qc3 {[%clk 0:01:37]} 14... f6 {[%clk 0:01:23.4]} 15. Bxc7 {[%clk 0:01:26.9]}
15... f5 {[%clk 0:01:08.6]} 16. Be5 {[%clk 0:01:22.7]} 16... fxe4 {[%clk
0:01:05.8]} 17. Bxe4 {[%clk 0:01:19.8]} 17... Ba6 {[%clk 0:00:38.2]} 18. Bxa8
{[%clk 0:01:15.4]} 18... Rxa8 {[%clk 0:00:39.1]} 19. Rad1 {[%clk 0:01:06.3]}
19... Rc8 {[%clk 0:00:37.8]} 20. Qb3 {[%clk 0:00:56.1]} 20... Bb7 {[%clk
0:00:33.9]} 21. Bxg7 {[%clk 0:00:52.1]} 21... Qxg7 {[%clk 0:00:31.5]} 22. Rxe6
{[%clk 0:00:26.4]} 22... dxe6 {[%clk 0:00:31.1]} 23. Qxe6+ {[%clk 0:00:27.3]}
23... Kh8 {[%clk 0:00:13.9]} 24. Rd7 {[%clk 0:00:26.8]} 24... Qxb2 {[%clk
0:00:08.7]} 25. h4 {[%clk 0:00:11.6]} 25... Qc1+ {[%clk 0:00:08.8]} 26. Kh2
{[%clk 0:00:10.3]} 26... Qf4+ {[%clk 0:00:09.4]} 27. Kh3 {[%clk 0:00:06.6]}
27... Be4 {[%clk 0:00:01.7]} 28. Rf7 {[%clk 0:00:02.9]} 28... Bf5+ {[%clk
0:00:02]} 29. Rxf5 {[%clk 0:00:01.5]} 29... Qxf5+ {[%clk 0:00:02.9]} 30. Qxf5
{[%clk 0:00:01.6]} 30... gxf5 {[%clk 0:00:03.8]} 0-1